fUST/lending_fUST_20240111
["ID","MTS","AMOUNT","RATE_DAILY","PERIOD"]
[311138785,1704929450202,-804.33,0.00030958,2]
[311138786,1704929450212,-500.0,0.00030958,2]
[311138789,1704929450223,-161.62947205,0.00030958,2]
[311138791,1704929450232,-500.0,0.00030958,2]
[311138792,1704929450242,-500.0,0.00030958,2]
[311138794,1704929450252,-500.0,0.00030958,2]
[311138797,1704929450262,-280.60919209,0.00030958,2]
[311138823,1704929450518,-313.27859463,0.00018449,2]
[311138825,1704929450530,-277.56063369,0.00018449,2]
[311138827,1704929450543,-725.99477965,0.00018449,2]
[311138830,1704929450561,-3683.16599203,0.00018449,2]
[311138832,1704929450571,-155.07753877,0.0001902,2]
[311138833,1704929450581,-500.0,0.00030136,2]
[311138835,1704929450591,-500.0,0.0003041,2]
[311138837,1704929450602,-500.0,0.00030958,2]
[311138839,1704929450612,-717.82,0.00030958,2]
[311138842,1704929450623,-500.0,0.00030958,2]
[311138843,1704929450634,-507.8,0.00030958,2]
[311138845,1704929450645,-500.0,0.00030958,2]
[311138848,1704929450655,-500.0,0.00030958,2]
[311138850,1704929450668,-12187.55,0.00030958,2]
[311138852,1704929450678,-2647.91,0.00030958,2]
[311138854,1704929450688,-896.88,0.00030958,2]
[311138856,1704929450698,-500.0,0.00030958,2]
[311138857,1704929450707,-500.0,0.00030958,2]
[311138859,1704929450717,-669.8,0.00030958,2]
[311138861,1704929450728,-500.0,0.00030958,2]
[311138863,1704929450738,-500.0,0.00030958,2]
[311138865,1704929450749,-500.0,0.00030958,2]
[311138867,1704929450760,-500.0,0.00030958,2]
[311138870,1704929450771,-500.0,0.00030958,2]
[311138872,1704929450782,-648.63,0.00030958,2]
[311138874,1704929450803,-500.0,0.00030958,2]
[311138876,1704929450814,-2929.19,0.00030958,2]
[311138878,1704929450829,-500.0,0.00030958,2]
[311138880,1704929450840,-500.0,0.00030958,2]
[311138882,1704929450851,-1089.98,0.00030958,2]
[311138884,1704929450862,-5377.64,0.00030958,2]
[311138886,1704929450873,-9420.58,0.00030958,2]
[311138888,1704929450884,-500.0,0.00030958,2]
[311138890,1704929450894,-500.0,0.00030958,2]
[311138892,1704929450905,-500.0,0.00030958,2]
[311138894,1704929450916,-500.0,0.00030958,2]
[311138896,1704929450926,-2764.08,0.00030958,2]
[311138898,1704929450937,-500.0,0.00030958,2]
[311138899,1704929450947,-1892.95,0.00030958,2]
[311138901,1704929450957,-500.0,0.00030958,2]
[311138903,1704929450968,-737.13,0.00030958,2]
[311138906,1704929450978,-527.97,0.00030958,2]
[311138907,1704929450987,-500.0,0.00030958,2]
[311138909,1704929450997,-909.45,0.00030958,2]
[311138912,1704929451008,-1367.63,0.00030958,2]
[311138914,1704929451018,-500.0,0.00030958,2]
[311138916,1704929451029,-500.0,0.00030958,2]
[311138918,1704929451039,-500.0,0.00030958,2]
[311138920,1704929451053,-762.58,0.00030958,2]
[311138922,1704929451063,-500.0,0.00030958,2]
[311138924,1704929451073,-1913.4,0.00030958,2]
[311138926,1704929451083,-1507.86,0.00030958,2]
[311138927,1704929451093,-500.0,0.00030958,2]
[311138929,1704929451105,-537.8,0.00030958,2]
[311138931,1704929451115,-958.972643,0.00030958,2]
[311138934,1704929451125,-958.972643,0.00030958,2]
[311138935,1704929451135,-154.969006,0.00030958,2]
[311138937,1704929451145,-2000.0,0.0003096,2]
[311138948,1704929451243,-2000.0,0.0003097,2]
[311138950,1704929451254,-2000.0,0.0003098,2]
[311138952,1704929451264,-232.32,0.00030987,2]
[311138954,1704929451275,-2000.0,0.0003099,2]
[311138957,1704929451288,-4215.79787365,0.00031,2]
[311138959,1704929451302,-14678.21147873,0.00031,4]
[311138962,1704929451321,-82153.32941177,0.00031,4]
[311138964,1704929451332,-2000.0,0.00031,2]
[311138965,1704929451341,-2000.0,0.0003101,2]
[311138968,1704929451351,-2000.0,0.0003102,2]
[311138969,1704929451361,-2000.0,0.0003103,2]
[311138972,1704929451371,-2000.0,0.0003104,2]
[311138974,1704929451381,-150.26820741,0.0003104,7]
[311138976,1704929451390,-2000.0,0.0003105,2]
[311138977,1704929451400,-2000.0,0.0003106,2]
[311138979,1704929451410,-2000.0,0.0003107,2]
[311138981,1704929451420,-152.788532,0.00031076,2]
[311138983,1704929451430,-2000.0,0.0003108,2]
[311138985,1704929451440,-2079.751713,0.0003109,2]
[311138987,1704929451450,-150.0,0.00031131,2]
[311138990,1704929451460,-153.0,0.00031151,2]
[311138991,1704929451470,-182.389996,0.00031201,2]
[311138994,1704929451480,-182.389996,0.00031201,2]
[311138995,1704929451491,-410.37749,0.00031201,2]
[311138998,1704929451502,-151.0,0.0003122,2]
[311139000,1704929451512,-500.0,0.00031232,2]
[311139002,1704929451522,-500.0,0.00031232,2]
[311139003,1704929451532,-500.0,0.00031232,2]
[311139005,1704929451543,-500.0,0.00031232,2]
[311139007,1704929451557,-500.0,0.00031232,2]
[311139009,1704929451567,-521.91,0.00031232,2]
[311139010,1704929451576,-500.0,0.00031232,2]
[311139011,1704929451586,-500.0,0.00031232,2]
[311139012,1704929451596,-500.0,0.00031232,2]
[311139013,1704929451606,-500.0,0.00031232,2]
[311139014,1704929451617,-500.0,0.00031232,2]
[311139015,1704929451630,-500.0,0.00031232,2]
[311139016,1704929451641,-500.0,0.00031232,2]
[311139017,1704929451651,-500.0,0.00031232,2]
[311139018,1704929451662,-500.05,0.00031232,2]
[311139019,1704929451672,-540.19242962,0.00031232,2]
[311139020,1704929451682,-500.0,0.00031232,2]
[311139021,1704929451692,-500.0,0.00031232,2]
[311139023,1704929451702,-540.95,0.00031232,2]
[311139025,1704929451713,-169.64302887,0.00031232,2]
[311139027,1704929451723,-500.0,0.00031232,2]
[311139029,1704929451733,-500.0,0.00031232,2]
[311139031,1704929451743,-500.0,0.00031232,2]
[311139033,1704929451753,-500.0,0.00031232,2]
[311139035,1704929451763,-1570.42,0.00031232,2]
[311139037,1704929451772,-500.0,0.00031232,2]
[311139039,1704929451782,-613.79796148,0.00031232,2]
[311139041,1704929451791,-500.0,0.00031232,2]
[311139043,1704929451805,-500.0,0.00031232,2]
[311139045,1704929451815,-500.0,0.00031232,2]
[311139047,1704929451829,-509.75,0.00031232,2]
[311139049,1704929451840,-500.0,0.00031232,2]
[311139051,1704929451850,-500.0,0.00031232,2]
[311139053,1704929451859,-500.0,0.00031232,2]
[311139055,1704929451869,-500.0,0.00031232,2]
[311139057,1704929451879,-500.0,0.00031232,2]
[311139059,1704929451888,-500.0,0.00031232,2]
[311139061,1704929451898,-533.52,0.00031232,2]
[311139063,1704929451907,-500.0,0.00031232,2]
[311139065,1704929451918,-644.26,0.00031232,2]
[311139067,1704929451927,-500.0,0.00031232,2]
[311139069,1704929451936,-152.83967137,0.00031232,2]
[311139071,1704929451947,-500.0,0.00031232,2]
[311139073,1704929451958,-804.33,0.00031232,2]
[311139075,1704929451968,-500.0,0.00031232,2]
[311139078,1704929451978,-500.0,0.00031232,2]
[311139079,1704929451988,-500.0,0.00031232,2]
[311139082,1704929451997,-500.0,0.00031232,2]
[311139083,1704929452009,-717.82,0.00031232,2]
[311139086,1704929452020,-500.0,0.00031232,2]
[311139088,1704929452030,-507.8,0.00031232,2]
[311139090,1704929452039,-500.0,0.00031232,2]
[311139091,1704929452053,-500.0,0.00031232,2]
[311139093,1704929452064,-12187.55,0.00031232,2]
[311139095,1704929452074,-2647.91,0.00031232,2]
[311139097,1704929452083,-896.88,0.00031232,2]
[311139100,1704929452093,-500.0,0.00031232,2]
[311139102,1704929452102,-500.0,0.00031232,2]
[311139104,1704929452112,-669.8,0.00031232,2]
[311139106,1704929452121,-500.0,0.00031232,2]
[311139107,1704929452131,-500.0,0.00031232,2]
[311139110,1704929452141,-500.0,0.00031232,2]
[311139112,1704929452151,-648.63,0.00031232,2]
[311139113,1704929452160,-500.0,0.00031232,2]
[311139115,1704929452170,-2929.19,0.00031232,2]
[311139117,1704929452179,-500.0,0.00031232,2]
[311139119,1704929452189,-1089.98,0.00031232,2]
[311139121,1704929452201,-5377.64,0.00031232,2]
[311139124,1704929452211,-9420.58,0.00031232,2]
[311139126,1704929452222,-500.0,0.00031232,2]
[311139128,1704929452231,-500.0,0.00031232,2]
[311139129,1704929452240,-500.0,0.00031232,2]
[311139132,1704929452249,-500.0,0.00031232,2]
[311139133,1704929452258,-2764.08,0.00031232,2]
[311139135,1704929452267,-500.0,0.00031232,2]
[311139137,1704929452277,-1892.95,0.00031232,2]
[311139139,1704929452286,-500.0,0.00031232,2]
[311139141,1704929452299,-527.97,0.00031232,2]
[311139144,1704929452309,-737.13,0.00031232,2]
[311139145,1704929452319,-500.0,0.00031232,2]
[311139147,1704929452329,-909.45,0.00031232,2]
[311139150,1704929452339,-1367.63,0.00031232,2]
[311139151,1704929452348,-500.0,0.00031232,2]
[311139153,1704929452358,-500.0,0.00031232,2]
[311139155,1704929452368,-500.0,0.00031232,2]
[311139158,1704929452377,-762.58,0.00031232,2]
[311139160,1704929452387,-500.0,0.00031232,2]
[311139161,1704929452396,-1913.4,0.00031232,2]
[311139163,1704929452407,-1507.86,0.00031232,2]
[311139166,1704929452419,-430.68418418,0.00031232,2]
[311139168,1704929452429,-6563.990081,0.00031232,2]
[311139170,1704929452439,-6563.990081,0.00031232,2]
[311139172,1704929452448,-5000.0,0.00031395,2]
[311139174,1704929452457,-3652.41,0.00031409,2]
[311139176,1704929452467,-152.35064136,0.00031419,7]
[311139178,1704929452476,-873.37,0.00031419,2]
[311139180,1704929452485,-5000.0,0.0003142,2]
[311139181,1704929452495,-4337.23,0.0003144,2]
[311139183,1704929452504,-1631.401648,0.000315,2]
[311139185,1704929452514,-1500.0,0.000315,2]
[311139187,1704929452524,-906.0,0.000315,2]
[311139189,1704929452535,-2794.13755342,0.00031506,4]
[311139191,1704929452544,-155.0310062,0.00031506,2]
[311139193,1704929452557,-500.0,0.00031506,2]
[311139195,1704929452566,-500.0,0.00031506,2]
[311139197,1704929452575,-500.0,0.00031506,2]
[311139199,1704929452584,-253.82020334,0.00031506,2]
[311139200,1704929452595,-521.91,0.00031506,2]
[311139202,1704929452605,-500.0,0.00031506,2]
[311139204,1704929452616,-500.0,0.00031506,2]
[311139207,1704929452626,-500.0,0.00031506,2]
[311139209,1704929452636,-500.0,0.00031506,2]
[311139211,1704929452646,-500.0,0.00031506,2]
[311139213,1704929452656,-500.05,0.00031506,2]
[311139214,1704929452667,-500.0,0.00031506,2]
[311139216,1704929452677,-500.0,0.00031506,2]
[311139218,1704929452687,-540.95,0.00031506,2]
[311139221,1704929452698,-500.0,0.00031506,2]
[311139223,1704929452709,-500.0,0.00031506,2]
[311139224,1704929452720,-500.0,0.00031506,2]
[311139227,1704929452731,-1570.42,0.00031506,2]
[311139228,1704929452742,-500.0,0.00031506,2]
[311139230,1704929452752,-551.14435428,0.00031506,2]
[311139232,1704929452762,-500.0,0.00031506,2]
[311139234,1704929452772,-509.75,0.00031506,2]
[311139236,1704929452783,-500.0,0.00031506,2]
[311139238,1704929452794,-402.57048373,0.00031506,2]
[311139240,1704929452811,-500.0,0.00031506,2]
[311139242,1704929452828,-500.0,0.00031506,2]
[311139244,1704929452839,-533.52,0.00031506,2]
[311139246,1704929452849,-500.0,0.00031506,2]
[311139248,1704929452859,-644.26,0.00031506,2]
[311139250,1704929452869,-500.0,0.00031506,2]
[311139252,1704929452879,-500.0,0.00031506,2]
[311139254,1704929452888,-804.33,0.00031506,2]
[311139256,1704929452899,-500.0,0.00031506,2]
[311139258,1704929452909,-500.0,0.00031506,2]
[311139260,1704929452919,-500.0,0.00031506,2]
[311139262,1704929452928,-717.82,0.00031506,2]
[311139264,1704929452939,-500.0,0.00031506,2]
[311139266,1704929452948,-507.8,0.00031506,2]
[311139268,1704929452958,-500.0,0.00031506,2]
[311139270,1704929452967,-500.0,0.00031506,2]
[311139272,1704929452975,-12187.55,0.00031506,2]
[311139274,1704929452985,-2647.91,0.00031506,2]
[311139276,1704929452994,-896.88,0.00031506,2]
[311139278,1704929453003,-500.0,0.00031506,2]
[311139288,1704929453087,-500.0,0.00031506,2]
[311139290,1704929453097,-669.8,0.00031506,2]
[311139292,1704929453106,-500.0,0.00031506,2]
[311139294,1704929453116,-648.63,0.00031506,2]
[311139296,1704929453125,-500.0,0.00031506,2]
[311139298,1704929453135,-2929.19,0.00031506,2]
[311139300,1704929453145,-500.0,0.00031506,2]
[311139302,1704929453154,-1089.98,0.00031506,2]
[311139304,1704929453163,-5377.64,0.00031506,2]
[311139306,1704929453172,-9420.58,0.00031506,2]
[311139307,1704929453182,-500.0,0.00031506,2]
[311139309,1704929453193,-500.0,0.00031506,2]
[311139311,1704929453203,-500.0,0.00031506,2]
[311139313,1704929453212,-2764.08,0.00031506,2]
[311139315,1704929453221,-500.0,0.00031506,2]
[311139317,1704929453230,-1892.95,0.00031506,2]
[311139319,1704929453242,-500.0,0.00031506,2]
[311139321,1704929453252,-527.97,0.00031506,2]
[311139323,1704929453262,-737.13,0.00031506,2]
[311139325,1704929453271,-500.0,0.00031506,2]
[311139327,1704929453280,-909.45,0.00031506,2]
[311139329,1704929453290,-1367.63,0.00031506,2]
[311139331,1704929453302,-500.0,0.00031506,2]
[311139333,1704929453311,-500.0,0.00031506,2]
[311139335,1704929453320,-500.0,0.00031506,2]
[311139337,1704929453329,-762.58,0.00031506,2]
[311139339,1704929453339,-1913.4,0.00031506,2]
[311139341,1704929453348,-1507.86,0.00031506,2]
[311139343,1704929453358,-958.972643,0.00031506,2]
[311139345,1704929453367,-958.972643,0.00031506,2]
[311139347,1704929453377,-152.35064136,0.00031535,7]
[311139349,1704929453386,-272.0,0.0003156,2]
[311139351,1704929453395,-258.059664,0.00031577,2]
[311139353,1704929453404,-227.987495,0.00031577,2]
[311139355,1704929453413,-197.915325,0.00031577,2]
[311139357,1704929453422,-227.987494,0.00031577,2]
[311139359,1704929453431,-182.389996,0.00031577,2]
[311139361,1704929453440,-182.389996,0.00031577,2]
[311139363,1704929453449,-410.37749,0.00031577,2]
[311139365,1704929453457,-152.788532,0.00031577,2]
[311139367,1704929453466,-152.788532,0.00031577,2]
[311139369,1704929453474,-150.26820741,0.00031738,7]
[311139371,1704929453484,-588.95446111,0.00031778,4]
[311139373,1704929453492,-642.55748837,0.00031778,4]
[311139375,1704929453501,-310.14574003,0.00031778,4]
[311139377,1704929453510,-150.26820741,0.00031778,7]
[311139379,1704929453520,-500.0,0.0003178,2]
[311139381,1704929453532,-509.48262239,0.0003178,2]
[311139383,1704929453542,-521.91,0.0003178,2]
[311139385,1704929453556,-500.0,0.0003178,2]
[311139387,1704929453565,-500.0,0.0003178,2]
[311139389,1704929453575,-500.0,0.0003178,2]
[311139391,1704929453584,-500.05,0.0003178,2]
[311139393,1704929453593,-500.0,0.0003178,2]
[311139395,1704929453603,-500.0,0.0003178,2]
[311139397,1704929453613,-540.95,0.0003178,2]
[311139399,1704929453623,-500.0,0.0003178,2]
[311139401,1704929453632,-500.0,0.0003178,2]
[311139403,1704929453641,-500.0,0.0003178,2]
[311139405,1704929453651,-1570.42,0.0003178,2]
[311139407,1704929453659,-500.0,0.0003178,2]
[311139409,1704929453669,-500.0,0.0003178,2]
[311139411,1704929453678,-509.75,0.0003178,2]
[311139413,1704929453687,-500.0,0.0003178,2]
[311139415,1704929453695,-500.0,0.0003178,2]
[311139417,1704929453705,-544.4,0.0003178,2]
[311139419,1704929453714,-533.52,0.0003178,2]
[311139421,1704929453723,-500.0,0.0003178,2]
[311139423,1704929453733,-644.26,0.0003178,2]
[311139424,1704929453742,-500.0,0.0003178,2]
[311139426,1704929453751,-500.0,0.0003178,2]
[311139428,1704929453760,-804.33,0.0003178,2]
[311139430,1704929453770,-645.03284407,0.0003178,2]
[311139432,1704929453779,-500.0,0.0003178,2]
[311139434,1704929453788,-717.82,0.0003178,2]
[311139436,1704929453800,-500.0,0.0003178,2]
[311139438,1704929453809,-507.8,0.0003178,2]
[311139440,1704929453819,-500.0,0.0003178,2]
[311139443,1704929453833,-500.0,0.0003178,2]
[311139444,1704929453843,-12187.55,0.0003178,2]
[311139447,1704929453852,-2647.91,0.0003178,2]
[311139448,1704929453862,-896.88,0.0003178,2]
[311139451,1704929453873,-500.0,0.0003178,2]
[311139453,1704929453883,-500.0,0.0003178,2]
[311139455,1704929453893,-669.8,0.0003178,2]
[311139457,1704929453903,-275.77,0.0003178,2]
[311139459,1704929453912,-648.63,0.0003178,2]
[311139461,1704929453921,-500.0,0.0003178,2]
[311139463,1704929453930,-2929.19,0.0003178,2]
[311139464,1704929453940,-500.0,0.0003178,2]
[311139467,1704929453951,-1089.98,0.0003178,2]
[311139468,1704929453960,-5377.64,0.0003178,2]
[311139471,1704929453969,-9420.58,0.0003178,2]
[311139473,1704929453979,-500.0,0.0003178,2]
[311139474,1704929453988,-2764.08,0.0003178,2]
[311139476,1704929453997,-190.9333202,0.0003178,2]
[311139478,1704929454006,-1892.95,0.0003178,2]
[311139480,1704929454015,-500.0,0.0003178,2]
[311139482,1704929454025,-527.97,0.0003178,2]
[311139484,1704929454036,-737.13,0.0003178,2]
[311139486,1704929454048,-500.0,0.0003178,2]
[311139487,1704929454058,-909.45,0.0003178,2]
[311139488,1704929454068,-1367.63,0.0003178,2]
[311139489,1704929454082,-500.0,0.0003178,2]
[311139490,1704929454092,-500.0,0.0003178,2]
[311139491,1704929454101,-500.0,0.0003178,2]
[311139492,1704929454110,-762.58,0.0003178,2]
[311139493,1704929454119,-1913.4,0.0003178,2]
[311139494,1704929454128,-1507.86,0.0003178,2]
[311139495,1704929454137,-320.0046877,0.00031784,2]
[311139496,1704929454145,-153.0,0.00031784,2]
[311139497,1704929454154,-153.0,0.00031784,2]
[311139498,1704929454163,-153.0,0.00031784,2]
[311139499,1704929454172,-153.0,0.00031784,2]
[311139500,1704929454181,-153.0,0.00031784,2]
[311139501,1704929454190,-153.0,0.00031784,2]
[311139503,1704929454200,-153.0,0.00031784,2]
[311139505,1704929454209,-153.0,0.00031784,2]
[311139507,1704929454218,-153.0,0.00031784,2]
[311139509,1704929454227,-153.0,0.00031784,2]
[311139511,1704929454236,-153.0,0.00031784,2]
[311139513,1704929454245,-153.0,0.00031784,2]
[311139515,1704929454255,-153.0,0.00031784,2]
[311139517,1704929454264,-153.0,0.00031784,2]
[311139519,1704929454273,-12429.70172272,0.000318,2]
[311139521,1704929454282,-150.26820741,0.00031813,7]
[311139523,1704929454291,-151.0,0.0003183,2]
[311139525,1704929454304,-152.35064136,0.00031861,7]
[311139527,1704929454314,-5000.0,0.00031954,7]
[311139528,1704929454323,-5000.0,0.0003198,7]
[311139530,1704929454333,-232.32,0.00031999,2]
[311139532,1704929454342,-232.32,0.00031999,2]
[311139535,1704929454353,-2134.03260025,0.00032,4]
[311139536,1704929454362,-59504.55847533,0.00032,10]
[311139539,1704929454372,-14323.90051169,0.00032,15]
[311139571,1704929454601,-1915.43536684,0.00026999,2]
[311139573,1704929454686,-119.36535442,0.00026999,2]
[311139575,1704929454696,-500.0,0.00030136,2]
[311139577,1704929454705,-500.0,0.00030136,2]
[311139579,1704929454715,-500.0,0.0003041,2]
[311139581,1704929454725,-500.0,0.0003041,2]
[311139583,1704929454734,-500.0,0.00030684,2]
[311139585,1704929454744,-500.0,0.00030684,2]
[311139587,1704929454753,-573.03,0.00030958,2]
[311139589,1704929454764,-500.0,0.00030958,2]
[311139591,1704929454773,-14641.50464558,0.00032,15]
[311139593,1704929454785,-342.36884967,0.00032,15]
[311139595,1704929454796,-10715.30477131,0.00032,15]
[311139597,1704929454806,-13097.19522907,0.00032,2]
[311139600,1704929454817,-2785.60567284,0.00032,2]
[311139601,1704929454829,-5999.99,0.00032,2]
[311139603,1704929454839,-6000.0,0.00032,2]
[311139606,1704929454848,-6563.990081,0.00032,2]
[311139607,1704929454858,-6563.990081,0.00032,2]
[311139609,1704929454868,-958.972643,0.00032054,2]
[311139612,1704929454877,-958.972643,0.00032054,2]
[311139614,1704929454887,-500.0,0.00032054,2]
[311139616,1704929454896,-521.91,0.00032054,2]
[311139618,1704929454906,-500.0,0.00032054,2]
[311139619,1704929454915,-500.05,0.00032054,2]
[311139621,1704929454924,-342.14057924,0.00032054,2]
[311139623,1704929454932,-500.0,0.00032054,2]
[311139625,1704929454942,-540.95,0.00032054,2]
[311139628,1704929454951,-500.0,0.00032054,2]
[311139630,1704929454961,-643.01,0.00032054,2]
[311139632,1704929454971,-1570.42,0.00032054,2]
[311139634,1704929454980,-500.0,0.00032054,2]
[311139636,1704929454991,-500.0,0.00032054,2]
[311139638,1704929455001,-509.75,0.00032054,2]
[311139640,1704929455011,-500.0,0.00032054,2]
[311139642,1704929455021,-500.0,0.00032054,2]
[311139644,1704929455031,-533.52,0.00032054,2]
[311139646,1704929455041,-500.0,0.00032054,2]
[311139647,1704929455055,-644.26,0.00032054,2]
[311139649,1704929455067,-514.17023555,0.00032054,2]
[311139651,1704929455077,-197.46688216,0.00032054,2]
[311139653,1704929455087,-507.8,0.00032054,2]
[311139655,1704929455097,-500.0,0.00032054,2]
[311139657,1704929455107,-500.0,0.00032054,2]
[311139659,1704929455116,-4643.03118221,0.00032054,2]
[311139664,1704929455151,265.8874187,0.0001902,7]
[311139696,1704929455460,555.6067077,0.00016,5]
[311142429,1704929542320,200.0,0.00021999,7]
[311142430,1704929543171,280.0,0.00024199,7]
[311142450,1704929607946,-294.43000119,0.00015997,2]
[311142451,1704929607994,-261.7761853,0.00015998,2]
[311142453,1704929643888,-269.12766384,0.00018,2]
[311142458,1704929675928,546.7810851,0.00018,2]
[311142459,1704929686268,151.05135746,0.00028914,30]
[311142460,1704929686331,151.05135746,0.00028336,120]
[311142463,1704929692066,201.58333175,0.00018,2]
[311142464,1704929842279,200.0,0.00021863,7]
[311142465,1704929843058,280.0,0.00024049,7]
[311142466,1704930051926,-901.68385165,0.00018664,2]
[311142467,1704930051960,-322.83363774,0.00018665,2]
[311142468,1704930058534,-872.56977946,0.00018664,2]
[311142469,1704930065283,-198.82408315,0.00018663,2]
[311142470,1704930069040,-1582.84855742,0.00018663,2]
[311142471,1704930078958,-155.0341075,0.00018662,3]
[311142472,1704930078991,-271.96235488,0.00018662,2]
[311142473,1704930079055,-1646.00707524,0.00018663,2]
[311142474,1704930098138,155.0341075,0.00016795,3]
[311142475,1704930120132,155.0341075,0.00016795,3]
[311142476,1704930136144,155.0341075,0.00016795,3]
[311142477,1704930142786,280.0,0.00021902,7]
[311142478,1704930143566,391.0,0.00024093,7]
[311142480,1704930158133,155.0341075,0.00017998,3]
[311142481,1704930176138,155.0341075,0.0001629,3]
[311142482,1704930196142,155.0341075,0.0001629,3]
[311142483,1704930216133,155.0341075,0.00016286,3]
[311142484,1704930234132,128.14150297,0.00016286,3]
[311142485,1704930234162,26.89260453,0.00016286,3]
[311142486,1704930250534,173.26542419,0.00017997,2]
[311142487,1704930254133,155.0341075,0.00017998,3]
[311142488,1704930272138,155.0341075,0.00017998,3]
[311142489,1704930294345,155.0341075,0.00017998,3]
[311142490,1704930316141,155.0341075,0.00017998,3]
[311142491,1704930334139,155.0341075,0.00017998,3]
[311142492,1704930348899,411.0254517,0.00017086,2]
[311142493,1704930352143,155.04651395,0.00017998,3]
[311142494,1704930370139,155.0356582,0.00017998,3]
[311142495,1704930390161,155.0356582,0.00016269,3]
[311142496,1704930408287,155.0356582,0.00016269,3]
[311142497,1704930426155,155.0480649,0.00016269,3]
[311142498,1704930442883,280.0,0.00021864,7]
[311142499,1704930443666,391.0,0.0002405,7]
[311142501,1704930444161,155.0356582,0.00016269,3]
[311142502,1704930464149,155.0356582,0.00017998,3]
[311142503,1704930484421,28.37311223,0.0001626,3]
[311142506,1704930515730,151.04078101,0.00027533,30]
[311142507,1704930515792,151.04078101,0.00026982,120]
[311142543,1704930601476,1387.58762702,0.00015251,2]
[311142544,1704930601502,2500.0,0.00015251,2]
[311142598,1704930632105,-155.04496304,0.00015245,2]
[311142600,1704930632115,-198.82408315,0.00015245,2]
[311142602,1704930632124,-1108.31911469,0.00015246,2]
[311142905,1704930638239,-947.43868379,0.00015245,2]
[311142906,1704930638249,-881.19410482,0.00015246,2]
[311142907,1704930638258,-879.087691,0.00015247,2]
[311142908,1704930638268,-310.12764051,0.00015247,2]
[311142909,1704930638278,-285.7548216,0.00015248,2]
[311142910,1704930638287,-874.6714817,0.00015249,2]
[311142911,1704930638297,-23812.32037109,0.00015249,2]
[311142912,1704930638306,-155.04341216,0.0001525,2]
[311142913,1704930638316,-20832.93466306,0.0001525,2]
[311142914,1704930638325,-21358.83798188,0.00015251,2]
[311142915,1704930638337,-686.53707421,0.00016244,2]
[311142916,1704930638346,-5000.0,0.00016245,2]
[311142917,1704930638356,-160.69305661,0.00016245,2]
[311142918,1704930638366,-7987.09073251,0.00016245,2]
[311142919,1704930638375,-400.02724112,0.00016246,2]
[311142920,1704930638386,-1239.896093,0.00016246,2]
[311142921,1704930638395,-2927.32783457,0.00016246,2]
[311142922,1704930638404,-525.62118693,0.00016247,2]
[311142924,1704930638415,-155.0418613,0.00016247,2]
[311142926,1704930638424,-860.80550823,0.00016247,2]
[311142928,1704930638433,-1067.08288417,0.00016249,2]
[311142930,1704930638448,-7943.71182072,0.00016249,2]
[311142931,1704930638458,-309.73670291,0.00016249,2]
[311142932,1704930638467,-2706.76331097,0.00016249,2]
[311142933,1704930638476,-546.34729889,0.00016249,2]
[311142935,1704930638485,-3809.42878928,0.00016249,2]
[311142937,1704930638494,-469.64064105,0.00016249,2]